[Event "24th Bosnjaci Open 2019"]
[Site "Bosnjaci"]
[Date "2019.01.04"]
[Round "2.1"]
[White "Kovacevic, Blazimir"]
[Black "Ivekovic, Tihana"]
[Result "1-0"]
[ECO "A07"]
[WhiteElo "2488"]
[BlackElo "2071"]
[Annotator "ChessBase"]
[PlyCount "145"]
[EventDate "2019.01.03"]
[EventType "swiss"]
[EventCountry "CRO"]
[SourceTitle "playchess.com"]
[Source "ChessBase"]
[SourceQuality "1"]
[TimeControl "5400+30"]

1. Nf3 {[%emt 0:00:30]} d5 {[%emt 0:00:30]} 2. g3 {[%emt 0:00:00]} Nf6 {[%emt 0:00:00]} 3. Bg2 {[%emt 0:00:00]} e6 {[%emt 0:00:00]} 4. O-O {[%emt 0:00:30]} Be7 {[%emt 0:00:30]} 5. d3 {[%emt 0:01:30]} O-O {[%emt 0:00:30]} 6. Nbd2 {[%emt 0:00:30]} Nbd7 {[%emt 0:02:30]} 7. e4 {[%emt 0:00:30]} dxe4 {[%emt 0:01:30]} 8. dxe4 {[%emt 0:00:30]} e5 {[%emt 0:04:30]} 9. Qe2 {[%emt 0:04:30]} c6 {[%emt 0:01:30]} 10. Nc4 {[%emt 0:03:30]} Qc7 {[%emt 0:00:00]} 11. a4 {[%emt 0:00:30]} Re8 {[%emt 0:09:00]} 12. b3 {[%emt 0:09:30]} Bf8 {[%emt 0:02:30]} 13. Bb2 {[%emt 0:00:30]} b6 {[%emt 0:01:30]} 14. Rfd1 {[%emt 0:06:30]} Ba6 {[%emt 0:01:30]} 15. Nh4 {[%emt 0:04:30]} Nc5 {[%emt 0:09:30]} 16. f3 {[%emt 0:02:30]} Nfd7 {[%emt 0:04:30]} 17. Bf1 {[%emt 0:01:30]} Bxc4 {[%emt 0:07:30]} 18. Qxc4 {[%emt 0:00:30]} Ne6 {[%emt 0:01:30]} 19. Kh1 {[%emt 0:15:30]} Rad8 {[%emt 0:03:30]} 20. b4 {[%emt 0:01:30]} g6 {[%emt 0:04:30]} 21. c3 {[%emt 0:02:30]} Bg7 {[%emt 0:05:30]} 22. Bc1 {[%emt 0:04:30]} Ndf8 {[%emt 0:03:30]} 23. Be3 {[%emt 0:00:30]} Rxd1 {[%emt 0:00:30]} 24. Rxd1 {[%emt 0:00:30]} Re7 {[%emt 0:02:30]} 25. Qb3 {[%emt 0:02:30]} Rd7 {[%emt 0:01:30]} 26. Ra1 {[%emt 0:06:30]} Bf6 {[%emt 0:02:30]} 27. Ng2 {[%emt 0:00:00]} Bg5 {[%emt 0:00:00]} 28. Bg1 {[%emt 0:05:00]} Bd2 {[%emt 0:04:00]} 29. Ne3 {[%emt 0:02:30]} Ng5 {[%emt 0:00:00]} 30. Kg2 {[%emt 0:00:30]} Qd6 {[%emt 0:02:00]} 31. Rd1 {[%emt 0:16:04]} Qe6 {[%emt 0:10:21]} 32. Qxe6 {[%emt 0:00:04]} Ngxe6 {[%emt 0:00:03]} 33. b5 {[%emt 0:03:49]} Bxe3 {[%emt 0:00:05]} 34. Rxd7 {[%emt 0:00:06]} Nxd7 {[%emt 0:00:04]} 35. Bxe3 {[%emt 0:01:10]} cxb5 {[%emt 0:00:08]} 36. axb5 {[%emt 0:01:01]} Nec5 {[%emt 0:00:10]} 37. Kf2 {[%emt 0:01:26]} Kf8 {[%emt 0:00:38]} 38. Ke1 {[%emt 0:00:50]} Ke7 {[%emt 0:00:56]} 39. Kd2 {[%emt 0:00:17]} Kd6 {[%emt 0:02:34]} 40. Bc4 {[%emt 0:00:16]} Ne6 {[%emt 0:00:13]} 41. h4 {[%emt 0:00:23]} f5 {[%emt 0:03:53]} 42. exf5 {[%emt 0:01:31]} gxf5 {[%emt 0:00:04]} 43. g4 {[%emt 0:01:36]} f4 {[%emt 0:02:02]} 44. Bg1 {[%emt 0:01:07]} h6 {[%emt 0:00:09]} 45. Bd3 {[%emt 0:01:16]} Nf6 {[%emt 0:03:13]} 46. Bf5 {[%emt 0:00:25]} Ng7 {[%emt 0:00:11]} 47. Bg6 {[%emt 0:00:34]} Ne6 {[%emt 0:00:11]} 48. Kd3 {[%emt 0:00:38]} Kd5 {[%emt 0:01:03]} 49. Bf7 {[%emt 0:00:48]} Kd6 {[%emt 0:00:04]} 50. Bg6 {[%emt 0:00:34]} Kd5 {[%emt 0:00:04]} 51. c4+ {[%emt 0:00:37]} Kd6 {[%emt 0:00:08]} 52. Kc3 {[%emt 0:00:36]} Nd7 {[%emt 0:03:37]} 53. Bf5 {[%emt 0:00:25]} Ndc5 {[%emt 0:01:15]} 54. Bf2 {[%emt 0:00:32]} Ng7 {[%emt 0:00:56]} 55. Bg6 {[%emt 0:00:30]} Nge6 {[%emt 0:00:10]} 56. Bc2 {[%emt 0:00:25]} Nd7 {[%emt 0:00:29]} 57. Bh7 {[%emt 0:00:48]} Nf6 {[%emt 0:00:23]} 58. Bf5 {[%emt 0:00:13]} Ng7 {[%emt 0:01:24]} 59. Bc2 {[%emt 0:00:28]} Ne6 {[%emt 0:00:04]} 60. Bg6 {[%emt 0:00:20]} Nd7 {[%emt 0:01:51]} 61. Bf5 {[%emt 0:00:32]} Ndc5 {[%emt 0:01:23]} 62. Bg1 {[%emt 0:01:04]} Ng7 {[%emt 0:00:29]} 63. Bg6 {[%emt 0:00:26]} Nge6 {[%emt 0:00:04]} 64. Bc2 {[%emt 0:00:29]} Nd7 {[%emt 0:00:13]} 65. Bf2 {[%emt 0:00:26]} Nf6 {[%emt 0:00:22]} 66. Bf5 {[%emt 0:00:35]} Ng7 {[%emt 0:00:41]} 67. Bg6 {[%emt 0:00:00]} Ne6 {[%emt 0:00:04]} 68. Kd3 {[%emt 0:00:03]} Nd7 {[%emt 0:03:26]} 69. Ke4 {[%emt 0:00:39]} Ng7 {[%emt 0:00:03]} 70. g5 {[%emt 0:00:50]} hxg5 {[%emt 0:00:07]} 71. hxg5 {[%emt 0:00:03]} Ke6 {[%emt 0:00:36]} 72. Bh7 {[%emt 0:01:24]} Kf7 {[%emt 0:02:20]} 73. Bf5 {[%emt 0:00:29]} 1-0

[Event "24th Bosnjaci Open 2019"]
[Site "Bosnjaci"]
[Date "2019.01.04"]
[Round "2.2"]
[White "Lesic, Krunoslav"]
[Black "Zaja, Ivan"]
[Result "0-1"]
[ECO "B50"]
[WhiteElo "2067"]
[BlackElo "2458"]
[Annotator "ChessBase"]
[PlyCount "66"]
[EventDate "2019.01.03"]
[EventType "swiss"]
[EventCountry "CRO"]
[SourceTitle "playchess.com"]
[Source "ChessBase"]
[SourceQuality "1"]
[TimeControl "5400+30"]

1. e4 {[%emt 0:08:30]} c5 {[%emt 0:00:30]} 2. Nf3 {[%emt 0:00:00]} d6 {[%emt 0:00:30]} 3. c3 {[%emt 0:00:00]} Nf6 {[%emt 0:00:30]} 4. Be2 {[%emt 0:00:30]} Bd7 {[%emt 0:04:30]} 5. d3 {[%emt 0:00:00]} Nc6 {[%emt 0:00:30]} 6. O-O {[%emt 0:00:00]} g6 {[%emt 0:00:30]} 7. h3 {[%emt 0:00:30]} Bg7 {[%emt 0:00:30]} 8. Nh2 {[%emt 0:00:30]} d5 {[%emt 0:03:30]} 9. Qc2 {[%emt 0:04:30]} O-O {[%emt 0:05:30]} 10. f4 {[%emt 0:00:30]} c4 {[%emt 0:01:30]} 11. e5 {[%emt 0:09:30]} cxd3 {[%emt 0:00:00]} 12. Bxd3 {[%emt 0:00:30]} Qb6+ {[%emt 0:06:00]} 13. Qf2 {[%emt 0:04:30]} Qxf2+ {[%emt 0:06:30]} 14. Kxf2 {[%emt 0:02:30]} Ne8 {[%emt 0:02:30]} 15. Re1 {[%emt 0:03:30]} Nc7 {[%emt 0:00:30]} 16. Kg1 {[%emt 0:00:30]} Ne6 {[%emt 0:03:30]} 17. Bc2 {[%emt 0:05:30]} Rac8 {[%emt 0:05:30]} 18. Bb3 {[%emt 0:01:30]} d4 {[%emt 0:00:30]} 19. Nf3 {[%emt 0:02:30]} Rfd8 {[%emt 0:02:30]} 20. Rd1 {[%emt 0:01:30]} Bh6 {[%emt 0:07:30]} 21. g3 {[%emt 0:27:30]} Nc5 {[%emt 0:03:30]} 22. e6 {[%emt 0:06:44]} Nxe6 {[%emt 0:04:30]} 23. cxd4 {[%emt 0:01:07]} Ncxd4 {[%emt 0:01:30]} 24. Nxd4 {[%emt 0:01:13]} Nxd4 {[%emt 0:00:30]} 25. Be3 {[%emt 0:01:06]} Nxb3 {[%emt 0:02:30]} 26. axb3 {[%emt 0:00:02]} Bxh3 {[%emt 0:01:30]} 27. Nc3 {[%emt 0:01:14]} a6 {[%emt 0:03:30]} 28. Kf2 {[%emt 0:00:07]} Be6 {[%emt 0:00:30]} 29. Bb6 {[%emt 0:00:16]} Rxd1 {[%emt 0:00:30]} 30. Rxd1 {[%emt 0:00:01]} Bg7 {[%emt 0:02:30]} 31. b4 {[%emt 0:00:35]} Bf6 {[%emt 0:01:30]} 32. Kf3 {[%emt 0:00:44]} h5 {[%emt 0:00:30]} 33. Ne4 {[%emt 0:00:14]} Bg4+ {[%emt 0:00:30]} 0-1

[Event "24th Bosnjaci Open 2019"]
[Site "Bosnjaci"]
[Date "2019.01.04"]
[Round "2.4"]
[White "Katic, Zeljko"]
[Black "Sale, Srdjan"]
[Result "0-1"]
[ECO "A06"]
[WhiteElo "2035"]
[BlackElo "2446"]
[Annotator "NA"]
[PlyCount "74"]
[EventDate "2019.01.03"]
[EventType "swiss"]
[EventCountry "CRO"]
[SourceTitle "playchess.com"]
[Source "ChessBase"]
[SourceQuality "1"]
[TimeControl "5400+30"]

1. Nf3 {[%emt 0:02:30]} c5 {[%emt 0:00:30]} 2. b3 {[%emt 0:05:30]} d5 {[%emt 0:00:30]} 3. Bb2 {[%emt 0:00:30]} f6 {[%emt 0:00:00]} 4. d4 {[%emt 0:06:30]} cxd4 {[%emt 0:01:00]} 5. Qxd4 {[%emt 0:00:30]} Nc6 {[%emt 0:00:00]} 6. Qh4 {[%emt 0:10:30]} e5 {[%emt 0:05:00]} 7. e4 {[%emt 0:10:30]} Qa5+ {[%emt 0:08:30]} 8. Nbd2 {[%emt 0:07:30]} Nb4 {[%emt 0:00:30]} 9. Bd3 {[%emt 0:00:30]} Nxd3+ {[%emt 0:01:30]} 10. cxd3 {[%emt 0:05:30]} Bb4 {[%emt 0:02:30]} 11. exd5 {[%emt 0:02:30]} Ne7 {[%emt 0:02:30]} 12. a3 {[%emt 0:06:30]} Bxd2+ {[%emt 0:01:30]} 13. Nxd2 {[%emt 0:00:30]} Qxd5 {[%emt 0:07:30]} 14. O-O {[%emt 0:02:30]} Qxd3 {[%emt 0:02:30]} 15. Rad1 {[%emt 0:01:30]} O-O {[%emt 0:04:30]} 16. Ne4 {[%emt 0:14:30]} Qxb3 {[%emt 0:00:30]} 17. Bc1 {[%emt 0:04:57]} Nf5 {[%emt 0:06:30]} 18. Qh5 {[%emt 0:00:34]} Qf7 {[%emt 0:12:30]} 19. Qe2 {[%emt 0:00:48]} Be6 {[%emt 0:01:30]} 20. Qb2 {[%emt 0:00:43]} Bd5 {[%emt 0:04:30]} 21. Nc3 {[%emt 0:00:42]} Bc6 {[%emt 0:01:30]} 22. Rd3 {[%emt 0:02:30]} Rfd8 {[%emt 0:01:30]} 23. Rh3 {[%emt 0:00:10]} Qg6 {[%emt 0:02:30]} 24. f3 {[%emt 0:00:45]} Rd3 {[%emt 0:01:30]} 25. Ne2 {[%emt 0:03:11]} Rad8 {[%emt 0:01:30]} 26. Qc2 {[%emt 0:00:53]} a6 {[%emt 0:09:30]} 27. a4 {[%emt 0:00:07]} Qf7 {[%emt 0:01:31]} 28. Ng3 {[%emt 0:03:45]} Ne7 {[%emt 0:00:36]} 29. Nh5 {[%emt 0:00:37]} Ng6 {[%emt 0:03:22]} 30. Rg3 {[%emt 0:00:17]} Qb3 {[%emt 0:00:43]} 31. Qxb3+ {[%emt 0:02:07]} Rxb3 {[%emt 0:00:05]} 32. h4 {[%emt 0:00:22]} Bxa4 {[%emt 0:02:40]} 33. Nxf6+ {[%emt 0:01:30]} gxf6 {[%emt 0:00:04]} 34. h5 {[%emt 0:00:01]} Be8 {[%emt 0:00:58]} 35. hxg6 {[%emt 0:00:03]} hxg6 {[%emt 0:00:25]} 36. Rg4 {[%emt 0:00:12]} g5 {[%emt 0:03:00]} 37. Re1 {[%emt 0:00:36]} Kf7 {[%emt 0:00:52]} 0-1

[Event "24th Bosnjaci Open 2019"]
[Site "Bosnjaci"]
[Date "2019.01.04"]
[Round "2.5"]
[White "Rogulj, Branko"]
[Black "Jergovic, Andrija"]
[Result "1-0"]
[ECO "B09"]
[WhiteElo "2413"]
[BlackElo "2012"]
[Annotator "NA"]
[PlyCount "119"]
[EventDate "2019.01.03"]
[EventType "swiss"]
[EventCountry "CRO"]
[SourceTitle "playchess.com"]
[Source "ChessBase"]
[SourceQuality "1"]
[TimeControl "5400+30"]

1. e4 {[%emt 0:00:30]} d6 {[%emt 0:00:30]} 2. d4 {[%emt 0:00:00]} Nf6 {[%emt 0:00:00]} 3. Nc3 {[%emt 0:00:00]} g6 {[%emt 0:00:00]} 4. f4 {[%emt 0:00:30]} Bg7 {[%emt 0:00:00]} 5. Bd3 {[%emt 0:00:30]} O-O {[%emt 0:00:00]} 6. Nf3 {[%emt 0:00:30]} c5 {[%emt 0:01:30]} 7. dxc5 {[%emt 0:00:30]} dxc5 {[%emt 0:00:30]} 8. e5 {[%emt 0:01:30]} Nd5 {[%emt 0:00:00]} 9. Nxd5 {[%emt 0:00:30]} Qxd5 {[%emt 0:00:00]} 10. Qe2 {[%emt 0:00:30]} Nc6 {[%emt 0:00:30]} 11. Be4 {[%emt 0:00:30]} Qd7 {[%emt 0:00:00]} 12. O-O {[%emt 0:01:30]} Qc7 {[%emt 0:00:00]} 13. Qf2 {[%emt 0:05:30]} b6 {[%emt 0:00:30]} 14. Qh4 {[%emt 0:00:00]} Bb7 {[%emt 0:00:30]} 15. c3 {[%emt 0:04:00]} Rad8 {[%emt 0:01:30]} 16. Be3 {[%emt 0:06:30]} f6 {[%emt 0:15:30]} 17. Rae1 {[%emt 0:00:30]} Na5 {[%emt 0:03:30]} 18. Bxb7 {[%emt 0:03:30]} Nxb7 {[%emt 0:07:30]} 19. f5 {[%emt 0:08:30]} gxf5 {[%emt 0:18:30]} 20. Bf4 {[%emt 0:11:30]} Qc6 {[%emt 0:07:30]} 21. exf6 {[%emt 0:00:30]} exf6 {[%emt 0:00:30]} 22. Qh3 {[%emt 0:03:30]} Rfe8 {[%emt 0:03:30]} 23. Rxe8+ {[%emt 0:04:30]} Rxe8 {[%emt 0:00:30]} 24. Nh4 {[%emt 0:00:00]} Nd6 {[%emt 0:00:00]} 25. Rd1 {[%emt 0:00:00]} Re6 {[%emt 0:01:00]} 26. Qd3 {[%emt 0:04:30]} Bf8 {[%emt 0:01:30]} 27. Nxf5 {[%emt 0:01:30]} Nxf5 {[%emt 0:01:30]} 28. Qxf5 {[%emt 0:01:30]} Qe4 {[%emt 0:00:30]} 29. Qg4+ {[%emt 0:02:30]} Kh8 {[%emt 0:00:30]} 30. h3 {[%emt 0:03:30]} Qe2 {[%emt 0:06:30]} 31. Qxe2 {[%emt 0:03:30]} Rxe2 {[%emt 0:01:30]} 32. Rd8 {[%emt 0:00:00]} Kg7 {[%emt 0:00:30]} 33. Bd2 {[%emt 0:00:00]} Re7 {[%emt 0:11:32]} 34. Kf2 {[%emt 0:00:30]} Kf7 {[%emt 0:00:07]} 35. Ra8 {[%emt 0:00:30]} Rb7 {[%emt 0:00:52]} 36. Bf4 {[%emt 0:01:30]} Be7 {[%emt 0:00:47]} 37. Kf3 {[%emt 0:00:30]} Ke6 {[%emt 0:00:25]} 38. g4 {[%emt 0:05:30]} Bd6 {[%emt 0:04:33]} 39. Bh6 {[%emt 0:02:30]} Be5 {[%emt 0:05:13]} 40. Ke4 {[%emt 0:01:30]} Rd7 {[%emt 0:02:25]} 41. h4 {[%emt 0:00:30]} Bg3 {[%emt 0:02:18]} 42. h5 {[%emt 0:00:30]} Be5 {[%emt 0:00:14]} 43. Re8+ {[%emt 0:01:30]} Kf7 {[%emt 0:00:20]} 44. Rf8+ {[%emt 0:00:30]} Ke6 {[%emt 0:00:11]} 45. g5 {[%emt 0:00:00]} Rf7 {[%emt 0:05:55]} 46. Rxf7 {[%emt 0:03:00]} Kxf7 {[%emt 0:00:09]} 47. Kd5 {[%emt 0:00:30]} Bg3 {[%emt 0:01:36]} 48. gxf6 {[%emt 0:00:30]} Kxf6 {[%emt 0:00:13]} 49. Kc6 {[%emt 0:00:30]} Kf5 {[%emt 0:00:09]} 50. Bf8 {[%emt 0:00:30]} Bf4 {[%emt 0:01:14]} 51. Kb7 {[%emt 0:00:00]} b5 {[%emt 0:00:05]} 52. Kxa7 {[%emt 0:01:00]} Bc1 {[%emt 0:00:23]} 53. b3 {[%emt 0:00:30]} Kg5 {[%emt 0:00:12]} 54. h6 {[%emt 0:00:30]} Kg6 {[%emt 0:00:00]} 55. Bxc5 {[%emt 0:00:30]} Kxh6 {[%emt 0:00:03]} 56. a4 {[%emt 0:00:00]} bxa4 {[%emt 0:00:04]} 57. bxa4 {[%emt 0:00:00]} Kg5 {[%emt 0:00:35]} 58. a5 {[%emt 0:00:30]} h5 {[%emt 0:00:25]} 59. a6 {[%emt 0:00:00]} h4 {[%emt 0:00:02]} 60. Kb6 {[%emt 0:00:00]} 1-0

[Event "24th Bosnjaci Open 2019"]
[Site "Bosnjaci"]
[Date "2019.01.04"]
[Round "2.6"]
[White "Duda, Daniel"]
[Black "Ivekovic, Bozidar"]
[Result "0-1"]
[ECO "E47"]
[WhiteElo "1991"]
[BlackElo "2398"]
[Annotator "NA"]
[PlyCount "36"]
[EventDate "2019.01.03"]
[EventType "swiss"]
[EventCountry "CRO"]
[SourceTitle "playchess.com"]
[Source "ChessBase"]
[SourceQuality "1"]
[TimeControl "5400+30"]

1. d4 {[%emt 0:07:30]} Nf6 {[%emt 0:00:30]} 2. c4 {[%emt 0:00:30]} e6 {[%emt 0:00:30]} 3. Nc3 {[%emt 0:00:00]} Bb4 {[%emt 0:00:00]} 4. e3 {[%emt 0:00:00]} O-O {[%emt 0:03:00]} 5. Bd3 {[%emt 0:00:30]} d6 {[%emt 0:05:30]} 6. Nge2 {[%emt 0:03:30]} e5 {[%emt 0:06:30]} 7. O-O {[%emt 0:01:30]} Re8 {[%emt 0:02:30]} 8. Qc2 {[%emt 0:04:30]} c6 {[%emt 0:11:30]} 9. b3 {[%emt 0:04:30]} Qe7 {[%emt 0:15:30]} 10. f3 {[%emt 0:19:30]} d5 {[%emt 0:04:30]} 11. cxd5 {[%emt 0:11:30]} cxd5 {[%emt 0:00:00]} 12. Bxh7+ {[%emt 0:01:30]} Kh8 {[%emt 0:01:00]} 13. Bf5 {[%emt 0:08:30]} Nc6 {[%emt 0:00:30]} 14. Bd2 {[%emt 0:04:30]} exd4 {[%emt 0:02:30]} 15. Nxd4 {[%emt 0:08:30]} Nxd4 {[%emt 0:01:30]} 16. exd4 {[%emt 0:00:30]} Bxc3 {[%emt 0:02:30]} 17. Rae1 {[%emt 0:01:47]} Bxf5 {[%emt 0:00:30]} 18. Qxf5 {[%emt 0:00:43]} Qb4 {[%emt 0:01:30]} 0-1

[Event "24th Bosnjaci Open 2019"]
[Site "Bosnjaci"]
[Date "2019.01.04"]
[Round "2.7"]
[White "Zufic, Miroslav"]
[Black "Radovic, Sinisa"]
[Result "1-0"]
[ECO "B08"]
[WhiteElo "2389"]
[BlackElo "1955"]
[Annotator "NA"]
[PlyCount "73"]
[EventDate "2019.01.03"]
[EventType "swiss"]
[EventCountry "CRO"]
[SourceTitle "playchess.com"]
[Source "ChessBase"]
[SourceQuality "1"]
[TimeControl "5400+30"]

1. e4 {[%emt 0:00:30]} d6 {[%emt 0:00:30]} 2. d4 {[%emt 0:00:00]} Nf6 {[%emt 0:00:00]} 3. Nc3 {[%emt 0:00:00]} g6 {[%emt 0:00:00]} 4. Be3 {[%emt 0:00:30]} Bg7 {[%emt 0:00:30]} 5. Nf3 {[%emt 0:00:30]} c6 {[%emt 0:00:30]} 6. h3 {[%emt 0:02:30]} h6 {[%emt 0:01:30]} 7. Qd2 {[%emt 0:00:30]} b5 {[%emt 0:00:30]} 8. Bd3 {[%emt 0:00:30]} Nbd7 {[%emt 0:00:30]} 9. O-O {[%emt 0:04:30]} Nb6 {[%emt 0:00:30]} 10. b3 {[%emt 0:00:30]} Nfd7 {[%emt 0:03:30]} 11. Ne2 {[%emt 0:10:30]} Bb7 {[%emt 0:03:30]} 12. Rac1 {[%emt 0:06:30]} a6 {[%emt 0:02:30]} 13. c4 {[%emt 0:00:30]} Nc8 {[%emt 0:03:30]} 14. a4 {[%emt 0:09:30]} e6 {[%emt 0:09:30]} 15. Ng3 {[%emt 0:07:30]} bxc4 {[%emt 0:05:30]} 16. bxc4 {[%emt 0:01:30]} c5 {[%emt 0:04:30]} 17. d5 {[%emt 0:08:30]} a5 {[%emt 0:03:30]} 18. Rb1 {[%emt 0:00:30]} Ba6 {[%emt 0:00:30]} 19. dxe6 {[%emt 0:03:30]} fxe6 {[%emt 0:01:30]} 20. e5 {[%emt 0:00:00]} Nf8 {[%emt 0:02:30]} 21. Qc2 {[%emt 0:02:00]} Ne7 {[%emt 0:00:30]} 22. exd6 {[%emt 0:00:30]} Nf5 {[%emt 0:02:30]} 23. Bxc5 {[%emt 0:02:30]} Rc8 {[%emt 0:00:30]} 24. Ba3 {[%emt 0:00:30]} Kf7 {[%emt 0:00:30]} 25. c5 {[%emt 0:00:30]} Bxd3 {[%emt 0:01:30]} 26. Qxd3 {[%emt 0:00:30]} Nd7 {[%emt 0:01:30]} 27. Rb7 {[%emt 0:00:30]} Kg8 {[%emt 0:00:30]} 28. Nxf5 {[%emt 0:00:30]} gxf5 {[%emt 0:00:00]} 29. Nd4 {[%emt 0:01:30]} Qf6 {[%emt 0:04:00]} 30. Rxd7 {[%emt 0:05:30]} Qxd4 {[%emt 0:00:00]} 31. Qe2 {[%emt 0:02:30]} e5 {[%emt 0:02:00]} 32. Qa2+ {[%emt 0:02:30]} Kh7 {[%emt 0:00:00]} 33. Qf7 {[%emt 0:00:30]} Rhg8 {[%emt 0:00:00]} 34. Qxf5+ {[%emt 0:00:00]} Kh8 {[%emt 0:00:30]} 35. Qg4 {[%emt 0:01:00]} e4 {[%emt 0:01:30]} 36. Rd1 {[%emt 0:01:30]} Qe5 {[%emt 0:01:30]} 37. Re7 {[%emt 0:00:30]} 1-0

[Event "24th Bosnjaci Open 2019"]
[Site "Bosnjaci"]
[Date "2019.01.04"]
[Round "2.8"]
[White "Pasalic, Adnan"]
[Black "Muratovic, Efim"]
[Result "0-1"]
[ECO "A43"]
[WhiteElo "1973"]
[BlackElo "2389"]
[Annotator "NA"]
[PlyCount "67"]
[EventDate "2019.01.03"]
[EventType "swiss"]
[EventCountry "CRO"]
[SourceTitle "playchess.com"]
[Source "ChessBase"]
[SourceQuality "1"]
[TimeControl "5400+30"]

1. d4 {[%emt 0:00:30]} e6 {[%emt 0:01:30]} 2. c4 {[%emt 0:00:30]} c5 {[%emt 0:01:30]} 3. d5 {[%emt 0:00:30]} exd5 {[%emt 0:00:30]} 4. cxd5 {[%emt 0:00:00]} d6 {[%emt 0:00:30]} 5. e4 {[%emt 0:01:00]} Ne7 {[%emt 0:00:00]} 6. Bd3 {[%emt 0:00:30]} Ng6 {[%emt 0:00:00]} 7. Ne2 {[%emt 0:02:30]} Be7 {[%emt 0:00:30]} 8. O-O {[%emt 0:00:30]} O-O {[%emt 0:00:30]} 9. Nbc3 {[%emt 0:00:30]} a6 {[%emt 0:05:30]} 10. a4 {[%emt 0:00:30]} Bf6 {[%emt 0:00:30]} 11. Kh1 {[%emt 0:03:30]} Re8 {[%emt 0:00:30]} 12. a5 {[%emt 0:05:30]} Ne5 {[%emt 0:06:30]} 13. f4 {[%emt 0:02:30]} Nxd3 {[%emt 0:00:30]} 14. Qxd3 {[%emt 0:00:00]} Bg4 {[%emt 0:03:30]} 15. Bd2 {[%emt 0:08:00]} Bxe2 {[%emt 0:03:30]} 16. Qxe2 {[%emt 0:11:30]} Nd7 {[%emt 0:00:00]} 17. Qf3 {[%emt 0:11:30]} Qe7 {[%emt 0:18:00]} 18. Rae1 {[%emt 0:01:30]} Bd4 {[%emt 0:00:00]} 19. Re2 {[%emt 0:06:30]} f6 {[%emt 0:11:00]} 20. Rfe1 {[%emt 0:05:30]} Rab8 {[%emt 0:07:30]} 21. Qd3 {[%emt 0:03:30]} Qf7 {[%emt 0:05:30]} 22. Na4 {[%emt 0:10:30]} f5 {[%emt 0:02:30]} 23. exf5 {[%emt 0:03:30]} Rxe2 {[%emt 0:00:30]} 24. Qxe2 {[%emt 0:00:30]} Nf6 {[%emt 0:16:40]} 25. Qe6 {[%emt 0:00:30]} Re8 {[%emt 0:00:11]} 26. Qxd6 {[%emt 0:01:54]} Ne4 {[%emt 0:00:29]} 27. Rxe4 {[%emt 0:02:49]} Rxe4 {[%emt 0:00:07]} 28. Nxc5 {[%emt 0:02:55]} Bxc5 {[%emt 0:01:38]} 29. Qxc5 {[%emt 0:00:06]} Qxf5 {[%emt 0:01:30]} 30. h3 {[%emt 0:02:25]} h5 {[%emt 0:01:12]} 31. Kg1 {[%emt 0:10:17]} Re2 {[%emt 0:00:44]} 32. Bb4 {[%emt 0:03:17]} Qe4 {[%emt 0:01:06]} 33. Bc3 {[%emt 0:01:17]} Qe7 {[%emt 0:00:30]} 34. Bd2 {[%emt 0:00:30]} 0-1

[Event "24th Bosnjaci Open 2019"]
[Site "Bosnjaci"]
[Date "2019.01.04"]
[Round "2.9"]
[White "Beletic, Daniel"]
[Black "Golubicic, Luka"]
[Result "1-0"]
[ECO "D02"]
[WhiteElo "2371"]
[BlackElo "1933"]
[Annotator "NA"]
[PlyCount "49"]
[EventDate "2019.01.03"]
[EventType "swiss"]
[EventCountry "CRO"]
[SourceTitle "playchess.com"]
[Source "ChessBase"]
[SourceQuality "1"]
[TimeControl "5400+30"]

1. d4 {[%emt 0:00:30]} d5 {[%emt 0:01:30]} 2. Bf4 {[%emt 0:01:30]} e6 {[%emt 0:00:00]} 3. e3 {[%emt 0:00:00]} Nf6 {[%emt 0:00:00]} 4. Nd2 {[%emt 0:00:00]} c5 {[%emt 0:00:30]} 5. c3 {[%emt 0:00:30]} Nc6 {[%emt 0:00:30]} 6. Ngf3 {[%emt 0:00:30]} Be7 {[%emt 0:02:30]} 7. Ne5 {[%emt 0:01:30]} Nxe5 {[%emt 0:00:30]} 8. dxe5 {[%emt 0:00:00]} Nd7 {[%emt 0:00:30]} 9. h4 {[%emt 0:01:00]} Qc7 {[%emt 0:00:30]} 10. Qg4 {[%emt 0:02:30]} O-O {[%emt 0:04:30]} 11. Nf3 {[%emt 0:01:30]} Re8 {[%emt 0:14:30]} 12. Bd3 {[%emt 0:00:30]} Qb6 {[%emt 0:01:30]} 13. Rb1 {[%emt 0:18:30]} f5 {[%emt 0:00:30]} 14. Qh5 {[%emt 0:07:30]} g6 {[%emt 0:08:30]} 15. Qh6 {[%emt 0:00:30]} Bf8 {[%emt 0:01:30]} 16. Qg5 {[%emt 0:00:30]} Qd8 {[%emt 0:04:30]} 17. Qg3 {[%emt 0:00:30]} Bg7 {[%emt 0:00:30]} 18. h5 {[%emt 0:00:00]} Nf8 {[%emt 0:00:30]} 19. hxg6 {[%emt 0:02:00]} Nxg6 {[%emt 0:00:30]} 20. Qh3 {[%emt 0:01:30]} Nxf4 {[%emt 0:02:30]} 21. exf4 {[%emt 0:03:30]} h6 {[%emt 0:05:30]} 22. g4 {[%emt 0:00:30]} fxg4 {[%emt 0:01:30]} 23. Qxg4 {[%emt 0:00:30]} Rf8 {[%emt 0:01:30]} 24. Rxh6 {[%emt 0:00:30]} Rxf4 {[%emt 0:00:30]} 25. Qxf4 {[%emt 0:00:30]} 1-0